bitfinex/quotes_SOLUSD_20240705
["timestamp","ask_amount","ask_price","bid_price","bid_amount"]
[1720206441136,15.0592,135.44,135.33,26.66]
[1720206442006,7.3845,135.42,135.31,480.8]
[1720206442224,27.5551,135.41,135.31,380.8]
[1720206442521,15.0592,135.4,135.31,380.8]
[1720206442820,20.0,135.39,135.31,380.8]
[1720206443021,20.0,135.39,135.3,26.66]
[1720206443411,15.0592,135.4,135.3,26.66]
[1720206443603,15.0592,135.4,135.33,126.66]
[1720206443924,15.0592,135.4,135.34,20.0]
[1720206444099,15.0592,135.4,135.3,134.32161889]
[1720206444297,6.5,135.39,135.3,26.66]
[1720206444564,6.5,135.39,135.27,281.66]
[1720206444704,20.0,135.38,135.27,281.66]
[1720206445022,20.0,135.38,135.28,100.0]
[1720206445630,6.5,135.39,135.3,126.66]
[1720206445838,6.5,135.39,135.32,100.0]
[1720206446003,6.5,135.39,135.33,46.83]
[1720206446840,6.5,135.39,135.33,46.66]
[1720206447312,6.5,135.39,135.34,0.17]
[1720206450064,6.5,135.39,135.28,7.67079746]
[1720206450355,6.5,135.39,135.29,26.66]
[1720206451436,6.5,135.39,135.29,126.66]
[1720206451640,6.5,135.39,135.3,20.0]
[1720206452453,6.5,135.39,135.32,26.66]
[1720206452756,6.5,135.39,135.33,0.17]
[1720206457538,6.5,135.39,135.33,100.17]
[1720206457741,6.5,135.39,135.33,0.17]
[1720206457963,6.5,135.39,135.3,120.0]
[1720206458169,6.5,135.39,135.3,26.66]
[1720206458456,6.5,135.39,135.27,255.0]
[1720206458457,20.17,135.38,135.27,255.0]
[1720206458664,27.5566,135.38,135.27,281.66]
[1720206458841,27.5566,135.38,135.26,13.58900213]
[1720206459052,15.0793,135.36,135.26,26.66]
[1720206460367,15.0793,135.36,135.27,20.17]
[1720206460539,15.0793,135.36,135.29,26.66]
[1720206462851,15.0793,135.36,135.27,20.17]
[1720206463048,15.0793,135.36,135.27,120.17]
[1720206464461,15.0793,135.36,135.29,126.66]
[1720206464674,15.0793,135.36,135.3,0.17]
[1720206466573,15.0793,135.36,135.31,100.0]
[1720206466773,15.0793,135.36,135.32,0.17]
[1720206467370,15.0793,135.36,135.29,26.66]
[1720206467558,15.0793,135.36,135.3,20.17]
[1720206467755,15.0793,135.36,135.3,20.0]
[1720206468848,15.0793,135.36,135.31,0.17]
[1720206471447,15.0793,135.36,135.3,20.0]
[1720206474072,15.0793,135.36,135.25,100.0]
[1720206474281,15.0793,135.36,135.27,20.0]
[1720206474851,6.6477,135.35,135.27,20.0]
[1720206475466,15.8731,135.34,135.27,20.0]
[1720206476358,15.8731,135.34,135.24,20.0]
[1720206476956,0.17,135.33,135.24,20.0]
[1720206477165,15.8731,135.34,135.24,20.0]
[1720206477362,0.17,135.33,135.24,20.0]
[1720206480487,15.8731,135.34,135.25,0.17]
[1720206480983,0.17,135.33,135.24,20.0]
[1720206481185,0.17,135.33,135.23,46.66]
[1720206482363,6.295,135.32,135.23,46.66]
[1720206483091,6.295,135.32,135.23,26.66]
[1720206483385,15.6233,135.31,135.21,0.1]
[1720206483584,23.0141,135.31,135.21,0.1]
[1720206483783,6.5174,135.3,135.21,0.1]
[1720206483969,15.6139,135.28,135.21,0.1]
[1720206484578,0.17,135.27,135.21,0.1]
[1720206485193,6.3843,135.26,135.21,0.1]
[1720206486078,15.2405,135.23,135.21,0.1]
[1720206488488,6.3843,135.26,135.21,0.1]
[1720206488688,22.5253,135.26,135.21,0.1]
[1720206490407,15.03120648,135.33,135.21,0.1]
[1720206490408,6.6151,135.3,135.22,126.66]
[1720206490911,6.6151,135.3,135.24,100.0]
[1720206491502,6.6151,135.3,135.23,20.17]
[1720206493087,6.6151,135.3,135.24,100.0]
[1720206494293,15.3708,135.31,135.25,0.17]
[1720206494496,15.3708,135.31,135.25,26.83]
[1720206495324,6.3778,135.33,135.25,26.83]
[1720206495696,6.3778,135.33,135.25,26.66]
[1720206497139,6.3778,135.33,135.25,126.66]
[1720206497609,6.3778,135.33,135.25,26.66]
[1720206500005,6.3778,135.33,135.26,100.0]
[1720206500202,16.2848,135.34,135.28,126.66]
[1720206500394,6.5409,135.36,135.29,20.17]
[1720206500713,6.5409,135.36,135.3,100.0]
[1720206500926,6.5409,135.36,135.31,0.17]
[1720206501423,6.5409,135.36,135.29,20.0]
[1720206503694,6.5409,135.36,135.28,20.0]
[1720206503915,6.5409,135.36,135.29,0.17]
[1720206504120,6.5409,135.36,135.3,100.0]
[1720206504321,6.5409,135.36,135.31,0.17]
[1720206505102,6.5409,135.36,135.3,26.66]
[1720206505324,6.5409,135.36,135.25,26.66]
[1720206505629,13.9286,135.36,135.25,26.66]
[1720206506000,6.5409,135.36,135.25,26.66]
[1720206506418,6.5409,135.36,135.26,100.0]
[1720206506624,6.5409,135.36,135.27,0.17]
[1720206507331,6.5409,135.36,135.27,20.17]
[1720206507500,6.5409,135.36,135.29,100.0]
[1720206507695,6.5409,135.36,135.3,20.17]
[1720206510129,6.3767,135.39,135.33,100.0]
[1720206510308,6.3767,135.39,135.34,0.17]
[1720206510510,6.3767,135.39,135.3,20.0]
[1720206510725,6.3767,135.39,135.3,46.66]
[1720206510908,6.3767,135.39,135.31,0.17]
[1720206512135,6.3767,135.39,135.31,100.17]
[1720206512431,6.3767,135.39,135.32,20.0]
[1720206512628,6.3767,135.39,135.33,0.17]
[1720206514818,6.3767,135.39,135.32,0.17]
[1720206516728,6.3767,135.39,135.33,100.0]
[1720206516906,6.3767,135.39,135.34,0.17]
[1720206524348,6.2201,135.43,135.36,126.66]
[1720206524661,6.2201,135.43,135.37,0.17]
[1720206525225,6.2201,135.43,135.37,20.17]
[1720206525426,6.2201,135.43,135.38,100.0]
[1720206525651,6.2201,135.43,135.39,0.17]
[1720206525855,29.0192,135.5,135.39,0.17]
[1720206526167,21.639,135.5,135.4,100.0]
[1720206526335,21.639,135.5,135.42,126.66]
[1720206526522,21.639,135.5,135.43,0.17]
[1720206527059,21.639,135.5,135.42,26.66]
[1720206527261,7.3807,135.49,135.39,46.66]
[1720206527439,29.0192,135.5,135.4,0.17]
[1720206528137,7.3807,135.49,135.4,0.17]
[1720206528959,6.5328,135.49,135.39,46.66]
[1720206529129,0.17,135.48,135.39,20.0]
[1720206529336,22.9338,135.47,135.37,20.0]
[1720206529643,15.552,135.47,135.37,20.0]
[1720206529839,22.9338,135.47,135.36,26.66]
[1720206530156,7.3834,135.44,135.33,255.0]
[1720206530356,7.3834,135.44,135.32,396.2306]
[1720206530652,26.5686,135.46,135.35,100.0]
[1720206531335,26.5686,135.46,135.36,0.17]
[1720206531935,33.9511,135.46,135.36,0.17]
[1720206532169,33.9511,135.46,135.34,26.66]
[1720206532170,0.17,135.45,135.35,20.17]
[1720206533433,7.5528,135.45,135.35,20.17]
[1720206533941,22.4113,135.43,135.3,7.57102432]
[1720206534142,0.17,135.42,135.29,26.66]
[1720206534360,7.5547,135.42,135.29,26.66]
[1720206534860,15.8209,135.4,135.29,26.66]
[1720206535156,6.5904,135.38,135.29,26.66]
[1720206535961,6.5904,135.38,135.29,126.66]
[1720206536158,6.5904,135.38,135.3,0.17]
[1720206537356,6.5904,135.38,135.3,20.17]
[1720206538245,6.5904,135.38,135.3,20.0]
[1720206540755,16.1239,135.37,135.25,100.0]
[1720206540956,16.2939,135.37,135.25,126.66]
[1720206541348,23.6811,135.37,135.25,126.66]
[1720206541649,16.2939,135.37,135.25,126.66]
[1720206542352,33.7035,135.36,135.24,380.8]
[1720206542535,16.4792,135.35,135.24,380.8]
[1720206542736,16.3092,135.35,135.24,480.8]
[1720206542936,16.3092,135.35,135.26,126.66]
[1720206543739,16.3092,135.35,135.27,0.17]
[1720206544745,16.3092,135.35,135.28,100.0]
[1720206544965,16.3092,135.35,135.29,20.17]
[1720206546149,16.3092,135.35,135.29,0.17]
[1720206546346,16.3092,135.35,135.28,0.17]
[1720206547546,16.3092,135.35,135.26,26.66]
[1720206547850,16.3092,135.35,135.27,0.17]
[1720206548180,23.6975,135.35,135.24,26.66]
[1720206548341,0.17,135.34,135.24,26.66]
[1720206549152,6.2992,135.33,135.24,26.66]
[1720206549467,6.2992,135.33,135.22,635.8]
[1720206549468,6.2992,135.3,135.22,635.8]
[1720206549650,6.2992,135.3,135.22,380.8]
[1720206552949,6.2992,135.3,135.23,100.0]
[1720206554765,6.2992,135.3,135.24,20.17]
[1720206555362,6.2992,135.3,135.25,20.0]
[1720206557654,6.2992,135.3,135.24,0.17]
[1720206557855,6.2992,135.3,135.23,20.0]
[1720206558272,6.2992,135.3,135.22,26.83]
[1720206558569,6.2992,135.3,135.22,26.66]
[1720206559876,6.2992,135.3,135.23,0.17]
[1720206561267,6.2992,135.3,135.24,100.0]
[1720206561471,6.2992,135.3,135.25,0.17]
[1720206563687,6.2992,135.3,135.23,20.0]
[1720206563862,6.2992,135.3,135.24,0.17]
[1720206564579,6.2992,135.3,135.23,20.0]
[1720206565386,6.2992,135.3,135.24,0.17]
[1720206571395,21.7505,135.33,135.25,26.66]
[1720206571567,21.7505,135.33,135.26,120.17]
[1720206571882,15.1625,135.36,135.29,26.66]
[1720206572080,15.1625,135.36,135.3,0.17]
[1720206574466,15.1625,135.36,135.26,20.0]
[1720206574702,15.1625,135.36,135.25,46.66]
[1720206575699,15.1625,135.36,135.26,100.0]
[1720206575876,15.1625,135.36,135.27,20.0]
[1720206576591,22.5502,135.36,135.26,20.17]
[1720206576789,6.4351,135.35,135.26,0.17]
[1720206576975,13.8236,135.35,135.25,0.17]
[1720206577385,13.8236,135.35,135.24,0.17]
[1720206577807,6.4351,135.35,135.24,0.17]
[1720206578099,6.4351,135.35,135.25,100.0]
[1720206578270,6.4351,135.35,135.26,0.17]
[1720206582399,6.4351,135.35,135.27,100.0]
[1720206582702,6.4351,135.35,135.28,46.83]
[1720206583000,6.4351,135.35,135.29,100.0]
[1720206583174,6.4351,135.35,135.3,0.17]
[1720206583375,6.4351,135.35,135.28,46.66]
[1720206583779,6.4351,135.35,135.29,0.17]
[1720206588194,6.4351,135.35,135.28,46.83]
[1720206590205,6.4351,135.35,135.29,100.0]
[1720206590387,6.4351,135.35,135.3,0.17]
[1720206590587,6.4351,135.35,135.31,100.0]
[1720206591183,21.6617,135.39,135.33,100.0]
[1720206591379,21.6617,135.39,135.34,0.17]
[1720206595309,21.486,135.43,135.37,100.0]
[1720206595513,21.486,135.43,135.38,0.17]
[1720206597712,21.486,135.43,135.38,20.17]
[1720206598282,21.486,135.43,135.39,100.0]
[1720206599216,21.486,135.43,135.38,20.17]
[1720206600618,21.486,135.43,135.39,100.0]
[1720206600801,21.486,135.43,135.4,0.17]
[1720206601309,21.486,135.43,135.38,20.0]
[1720206601520,21.486,135.43,135.34,100.0]
[1720206601694,21.486,135.43,135.34,126.66]
[1720206602111,21.486,135.43,135.36,100.0]
[1720206603010,21.486,135.43,135.37,0.17]
[1720206603524,21.486,135.43,135.34,26.66]
[1720206603696,20.0,135.42,135.31,126.66]
[1720206604504,20.0,135.42,135.31,132.54376003]
[1720206605198,20.0,135.42,135.32,20.0]
[1720206605616,20.0,135.42,135.33,0.17]
[1720206605826,20.0,135.42,135.34,100.0]
[1720206605997,21.486,135.43,135.36,100.0]
[1720206606200,21.486,135.43,135.37,0.17]
[1720206610126,21.8729,135.46,135.41,0.17]
[1720206610306,21.8729,135.46,135.41,20.17]
[1720206611903,22.6781,135.5,135.43,26.66]
[1720206612106,22.6781,135.5,135.44,0.17]
[1720206612331,22.6781,135.5,135.43,26.66]
[1720206612539,22.6781,135.5,135.41,20.0]
[1720206612830,22.6781,135.5,135.42,0.17]
[1720206613397,22.6781,135.5,135.41,20.0]
[1720206613597,30.0583,135.5,135.41,20.0]
[1720206614024,22.6781,135.5,135.41,20.0]
[1720206614823,22.6781,135.5,135.42,0.17]
[1720206615330,22.6781,135.5,135.41,20.0]
[1720206617430,22.6781,135.5,135.42,0.17]
[1720206620232,22.6781,135.5,135.42,100.17]
[1720206620436,22.6781,135.5,135.42,0.17]
[1720206620820,22.6781,135.5,135.43,26.66]
[1720206621024,22.6781,135.5,135.44,120.17]
[1720206623223,22.6781,135.5,135.44,20.17]
[1720206623738,22.6781,135.5,135.36,15.3869]
[1720206623909,22.6781,135.5,135.39,26.66]
[1720206624112,7.3806,135.49,135.39,26.66]
[1720206624336,30.0583,135.5,135.39,26.66]
[1720206625727,22.6781,135.5,135.4,0.17]
[1720206626249,22.6781,135.5,135.4,20.17]
[1720206626420,22.6781,135.5,135.41,100.0]
[1720206626742,22.6781,135.5,135.42,0.17]
[1720206627934,22.6781,135.5,135.39,26.66]
[1720206628145,15.5111,135.5,135.4,0.17]
[1720206628312,15.5111,135.48,135.4,0.17]
[1720206629427,15.5111,135.48,135.4,20.17]
[1720206629635,15.5111,135.48,135.41,100.0]
[1720206629936,15.5111,135.48,135.42,20.17]
[1720206632048,7.3822,135.46,135.37,6.0178047]
[1720206632351,15.6743,135.45,135.36,407.46]
[1720206633762,15.6743,135.45,135.37,20.0]
[1720206633950,15.6743,135.45,135.37,20.17]
[1720206634530,15.6743,135.45,135.37,120.17]
[1720206634775,15.6743,135.45,135.39,100.0]
[1720206634966,15.6743,135.45,135.4,0.17]
[1720206635265,15.6743,135.45,135.37,20.17]
[1720206635867,15.6743,135.45,135.38,100.0]
[1720206636093,15.6743,135.45,135.39,20.17]
[1720206636398,15.6743,135.45,135.4,100.0]
[1720206636602,15.6743,135.45,135.41,0.17]
[1720206638471,15.6743,135.45,135.4,100.17]
[1720206639091,15.6743,135.45,135.42,100.0]
[1720206639300,15.6743,135.45,135.43,0.17]
[1720206640878,6.5106,135.46,135.42,20.17]
[1720206641505,6.5106,135.46,135.37,100.0]
[1720206642569,6.5106,135.46,135.36,32.464657]
[1720206642770,6.5106,135.46,135.37,120.0]
[1720206643366,6.5106,135.46,135.37,20.0]
[1720206643570,6.5106,135.46,135.37,120.0]
[1720206644816,6.5106,135.46,135.38,0.17]
[1720206645400,7.3854,135.41,135.31,100.0]
[1720206645598,7.3854,135.41,135.3,314.9411]
[1720206645599,15.4647,135.43,135.3,26.66]
[1720206645898,15.4647,135.43,135.32,7.72395216]
[1720206646276,6.1304,135.42,135.29,21.7877]
[1720206646574,6.1304,135.42,135.3,34.38460785]
[1720206647185,6.1304,135.42,135.3,134.38460785]
[1720206647597,6.1304,135.42,135.31,20.17]
[1720206648773,22.4714,135.4,135.3,7.72460785]
[1720206648986,22.4714,135.4,135.28,26.66]
[1720206650196,29.8569,135.4,135.28,26.66]
[1720206650595,29.8569,135.4,135.29,20.0]
[1720206650798,29.8569,135.4,135.3,0.17]
[1720206651316,22.4714,135.4,135.3,0.17]
[1720206651525,22.4714,135.4,135.31,26.66]
[1720206651705,22.4714,135.4,135.32,0.17]
[1720206652905,22.4714,135.4,135.32,20.17]
[1720206653403,22.4714,135.4,135.33,100.0]
[1720206653598,22.4714,135.4,135.35,100.0]
[1720206653798,22.4714,135.4,135.36,0.17]
[1720206654308,22.4714,135.4,135.34,26.66]
[1720206654604,22.4714,135.4,135.35,20.17]
[1720206654837,22.4714,135.4,135.32,20.0]
[1720206655004,22.4714,135.4,135.33,0.17]
[1720206656689,22.4714,135.4,135.33,100.17]
[1720206657295,22.4834,135.39,135.26,34.3863162]
[1720206657686,22.4834,135.39,135.26,78.8163162]
[1720206658005,22.4834,135.39,135.29,26.66]
[1720206658493,22.4834,135.39,135.3,20.0]
[1720206658882,22.4834,135.39,135.31,0.17]
[1720206660897,16.1469,135.38,135.3,20.0]
[1720206661098,16.1469,135.38,135.28,26.66]
[1720206661282,16.1469,135.38,135.29,20.0]
[1720206662287,16.1469,135.38,135.3,0.17]
[1720206663484,6.1336,135.37,135.28,26.66]
[1720206663688,6.1336,135.35,135.25,255.0]
[1720206663983,6.1336,135.35,135.24,380.8]
[1720206663984,15.8266,135.33,135.24,380.8]
[1720206665298,15.8266,135.33,135.25,20.0]
[1720206665690,15.8266,135.33,135.25,120.0]
[1720206665885,15.8266,135.33,135.26,26.83]
[1720206666090,15.8266,135.33,135.27,20.0]
[1720206666291,15.8266,135.33,135.28,0.17]
[1720206669122,15.8266,135.33,135.27,20.0]
[1720206669417,15.8266,135.33,135.21,426.91444382]
[1720206669724,15.8266,135.33,135.23,26.66]
[1720206670797,15.8266,135.33,135.24,20.0]
[1720206671000,15.8266,135.33,135.25,0.17]
[1720206673520,6.6631,135.32,135.24,20.0]
[1720206673727,16.3524,135.31,135.22,20.0]
[1720206674424,16.3524,135.31,135.23,100.0]
[1720206674719,6.6631,135.32,135.27,26.66]
[1720206674927,6.6631,135.32,135.28,20.17]
[1720206675221,16.3524,135.34,135.28,20.17]
[1720206675413,16.3524,135.34,135.28,120.17]
[1720206675606,16.3524,135.34,135.28,20.17]
[1720206685817,16.3524,135.34,135.3,126.66]
[1720206686032,16.3524,135.34,135.31,0.17]
[1720206686215,16.3524,135.34,135.31,20.17]
[1720206686414,6.3705,135.36,135.31,20.17]
[1720206686641,6.3705,135.36,135.31,20.0]
[1720206686816,6.3705,135.36,135.29,3.3334]
[1720206686817,15.4812,135.35,135.29,3.3334]
[1720206687014,6.6658,135.3,135.21,0.1]
[1720206687321,14.0567,135.3,135.21,0.1]
[1720206687928,20.0,135.29,135.21,0.1]
[1720206688325,27.3916,135.29,135.21,0.1]
[1720206688727,20.0,135.29,135.21,0.1]
[1720206689230,6.6658,135.3,135.21,0.1]
[1720206689623,6.6658,135.3,135.21,0.27]
[1720206690032,6.6658,135.3,135.21,20.27]
[1720206691735,14.0568,135.3,135.21,0.27]
[1720206692040,6.6658,135.3,135.21,0.1]
[1720206693245,6.6658,135.3,135.21,26.76]
[1720206693426,6.6658,135.3,135.21,0.1]
[1720206693736,7.3922,135.28,135.21,0.1]
[1720206694039,20.0,135.27,135.21,0.1]
[1720206697219,6.2414,135.29,135.21,0.1]
[1720206698328,13.6329,135.29,135.21,0.1]
[1720206699858,6.2414,135.29,135.21,0.1]
[1720206700423,9.6046,135.31,135.23,26.66]
[1720206700617,21.75485774,135.42,135.23,26.66]
[1720206700618,15.7662,135.36,135.24,20.17]
[1720206700828,15.7662,135.36,135.27,26.66]
[1720206701328,15.7662,135.36,135.28,0.17]
[1720206702464,6.5022,135.39,135.28,115.8104]
[1720206702647,6.5022,135.39,135.3,26.66]
[1720206702943,6.5022,135.39,135.31,0.17]
[1720206704028,13.8884,135.39,135.28,35.6404]
[1720206704232,13.8884,135.39,135.29,0.17]
[1720206704430,7.387,135.38,135.29,0.17]
[1720206704628,20.0,135.37,135.29,0.17]
[1720206705644,20.0,135.37,135.27,407.46]
[1720206705842,20.0,135.37,135.28,0.17]
[1720206706644,20.0,135.38,135.3,26.66]
[1720206706846,6.5022,135.39,135.31,0.17]
[1720206707122,6.5022,135.39,135.27,407.46]
[1720206707438,6.5022,135.39,135.28,20.17]
[1720206707439,7.3873,135.37,135.28,20.17]
[1720206707749,7.3867,135.38,135.28,20.17]
[1720206708125,13.8883,135.39,135.28,0.17]
[1720206708435,0.17,135.38,135.27,0.17]
[1720206708732,0.17,135.38,135.26,20.0]
[1720206708930,20.17,135.38,135.25,43.229]
[1720206709733,7.3895,135.33,135.21,271.7272]
[1720206709940,7.3888,135.34,135.21,16.7272]
[1720206710125,7.5584,135.35,135.21,22.52298479]
[1720206710345,20.0,135.34,135.23,100.0]
[1720206710845,15.6205,135.37,135.25,100.0]
[1720206711044,20.0,135.36,135.26,20.17]
[1720206712051,20.0,135.36,135.26,0.17]
[1720206712358,20.0,135.36,135.25,0.17]
[1720206712552,27.3877,135.36,135.25,0.17]
[1720206712729,20.0,135.36,135.25,0.17]
[1720206712933,20.0,135.36,135.26,100.0]
[1720206713234,20.0,135.36,135.27,35.7019]
[1720206713741,15.6205,135.37,135.28,100.0]
[1720206713936,15.6205,135.37,135.29,0.17]
[1720206714654,15.6205,135.37,135.28,0.17]
[1720206716754,15.6205,135.37,135.27,35.5319]
[1720206716931,23.0078,135.37,135.27,35.5319]
[1720206718033,15.6205,135.37,135.28,0.17]
[1720206719876,15.6205,135.37,135.27,35.5319]
[1720206720343,15.6205,135.37,135.28,0.17]
[1720206721853,7.3882,135.35,135.27,35.5319]
[1720206722038,15.6205,135.37,135.27,35.5319]
[1720206722240,20.17,135.36,135.27,35.5319]
[1720206722662,27.5578,135.36,135.27,35.5319]
[1720206723139,20.17,135.36,135.27,35.5319]
[1720206723341,20.0,135.36,135.28,0.17]
[1720206724443,20.0,135.36,135.21,509.42319161]
[1720206724444,9.6046,135.35,135.21,13.62319161]
[1720206724645,20.0,135.34,135.21,0.1]
[1720206725038,7.3894,135.33,135.21,0.1]
[1720206725357,20.0,135.32,135.21,0.1]
[1720206725562,27.3899,135.32,135.21,0.1]
[1720206726856,27.3899,135.32,135.22,0.17]
[1720206727645,7.3904,135.31,135.22,0.17]
[1720206727949,20.0,135.3,135.22,0.17]
[1720206728469,20.0,135.31,135.22,0.17]
[1720206728863,27.3905,135.31,135.22,0.17]
[1720206729041,27.3905,135.31,135.21,0.1]
[1720206729239,9.6046,135.3,135.21,0.1]
[1720206729440,20.0,135.29,135.21,0.1]
[1720206729663,7.3943,135.24,135.21,0.1]
[1720206730552,6.7956,135.28,135.21,0.1]
[1720206730553,7.3949,135.23,135.21,0.1]
[1720206730748,20.0,135.22,135.21,0.1]
[1720206732668,7.3944,135.24,135.21,0.1]
[1720206732849,7.3932,135.26,135.21,0.1]
[1720206733256,7.3927,135.27,135.21,0.1]
[1720206734154,21.75191638,135.28,135.21,0.1]
[1720206734350,14.35971638,135.28,135.21,0.1]
[1720206734861,6.6256,135.28,135.21,0.1]
[1720206735178,26.77,135.31,135.23,26.77]
[1720206735179,7.73264213,135.31,135.23,26.77]
[1720206735351,34.1567,135.38,135.24,120.17]
[1720206735553,7.3872,135.37,135.24,120.17]
[1720206736678,26.77,135.38,135.24,120.17]
[1720206737246,34.1567,135.38,135.24,120.17]
[1720206737776,7.3867,135.38,135.24,120.17]
[1720206737958,20.0,135.37,135.24,120.17]
[1720206738549,27.3871,135.37,135.24,120.17]
[1720206739079,20.0,135.37,135.24,20.17]
[1720206739380,7.3895,135.33,135.24,0.17]
[1720206739544,20.0,135.32,135.22,403.9344]
[1720206739743,0.17,135.36,135.22,23.1344]
[1720206740148,0.17,135.37,135.22,23.1344]
[1720206740349,7.3908,135.31,135.22,23.1344]
[1720206742381,7.3915,135.29,135.22,23.1344]
[1720206742873,7.392,135.28,135.22,16.6516]
[1720206744056,0.17,135.29,135.22,16.6516]
[1720206744259,7.3935,135.26,135.21,0.1]
[1720206744894,0.17,135.27,135.21,0.1]
[1720206745376,7.3933,135.26,135.21,0.1]
[1720206745685,0.17,135.25,135.21,0.1]
[1720206746454,7.3926,135.27,135.21,0.1]
[1720206746671,20.0,135.26,135.21,0.1]
[1720206748077,7.3916,135.29,135.21,0.1]
[1720206748478,13.79250617,135.31,135.21,0.1]
[1720206748658,7.392,135.28,135.21,0.1]
[1720206749264,7.5617,135.29,135.21,0.1]
[1720206749465,20.0,135.28,135.21,0.1]
[1720206749781,20.0,135.3,135.21,0.1]
[1720206750377,27.3911,135.3,135.21,0.1]
[1720206750963,20.0,135.3,135.21,0.1]
[1720206751481,7.3916,135.29,135.21,0.1]
[1720206751788,20.0,135.28,135.21,0.1]
[1720206752083,7.3932,135.26,135.21,0.1]
[1720206755678,7.5626,135.27,135.21,0.1]
[1720206755863,20.0,135.28,135.21,0.1]
[1720206756064,0.17,135.29,135.21,0.1]
[1720206756269,7.3924,135.28,135.21,0.1]
[1720206756471,27.393,135.27,135.21,0.1]
[1720206756674,0.17,135.26,135.21,0.1]
[1720206757463,7.3948,135.23,135.21,0.1]
[1720206757688,20.0,135.22,135.21,0.1]
[1720206758193,27.3953,135.22,135.21,0.1]
[1720206758375,27.5653,135.22,135.21,0.1]
[1720206758770,20.17,135.22,135.21,0.1]
[1720206759185,20.0,135.22,135.21,0.1]
[1720206760670,7.73562005,135.24,135.21,0.1]
[1720206760863,7.3941,135.25,135.21,0.1]
[1720206761059,7.73555036,135.25,135.21,0.1]
[1720206761478,7.3932,135.26,135.21,0.1]
[1720206762267,20.17,135.25,135.21,0.1]
[1720206762461,7.3948,135.23,135.21,0.1]
[1720206763187,27.5637,135.25,135.21,0.1]
[1720206763392,20.17,135.25,135.21,0.1]
[1720206763686,20.0,135.24,135.21,0.1]
[1720206763879,27.3932,135.26,135.21,0.1]
[1720206764075,15.12798213,135.27,135.21,0.1]
[1720206765190,20.0,135.26,135.21,0.1]
[1720206766790,7.5622,135.28,135.21,0.1]
[1720206766791,20.0,135.27,135.21,0.1]
[1720206767186,27.5621,135.28,135.21,0.1]
[1720206767494,7.3927,135.27,135.21,0.1]
[1720206767794,20.0,135.26,135.21,0.1]
[1720206768790,0.17,135.25,135.21,0.1]